[Event "35th Roquetas Festival 2024"]
[Site "Roquetas de Mar"]
[Date "2024.01.04"]
[Round "4.2"]
[White "Sosa, Tomas"]
[Black "Habans Aguerrea, Javier"]
[Result "1-0"]
[ECO "B10"]
[WhiteElo "2554"]
[BlackElo "2368"]
[Annotator "TA"]
[PlyCount "195"]
[EventDate "2024.01.02"]
[EventType "swiss"]
[EventCountry "ESP"]
[SourceTitle "playchess.com"]
[Source "ChessBase"]
[SourceQuality "1"]
[TimeControl "5400+30"]

{[%evp 38,195,45,28,52,27,29,29,42,26,203,203,209,208,200,201,200,199,210,209,202,200,206,152,219,205,219,212,223,217,281,259,286,272,247,144,188,153,138,137,144,122,149,130,143,139,153,0,0,0,72,72,72,72,72,72,72,72,72,72,72,72,72,72,72,72,72,72,72,72,72,72,72,72,72,72,72,0,72,72,72,72,72,15,72,72,72,72,72,72,72,72,72,72,72,72,72,72,72,15,72,72,72,72,72,72,72,72,897,72,72,0,72,0,72,72,72,72,72,72,72,72,72,72,72,72,72,72,72,0,72,72,72,72,72,72,72,72,72,72,72,72,72,0,72,0,72,8,8,0,0,0,8,8,8,8,29980,29981,29985,29986]} 1. e4 c6 2. Nf3 d5 3. Nc3 dxe4 4. Nxe4 Nf6 5. Qe2 Nxe4 6. Qxe4 Nd7 7. c3 Nf6 8. Qc2 Bg4 9. Ne5 Bh5 10. Qb3 Qc7 11. d4 e6 12. g3 Be7 13. Bg2 O-O 14. O-O Rfd8 15. Re1 Qb6 16. Nc4 Qxb3 17. axb3 Nd5 18. b4 Kf8 19. h3 Bg6 20. Bd2 Bf6 21. Ra3 Be7 22. Bf3 a6 23. h4 Nxb4 $2 (23... h6 $11 {and Black stays safe.}) 24. cxb4 $18 Rxd4 25. Rc1 Rxd2 26. Nxd2 Bxb4 27. Nb3 Bxa3 28. bxa3 Rd8 29. Nc5 b6 30. Nxa6 Rd3 (30... c5 $16) 31. Bxc6 $18 Rxa3 32. Nb8 Ke7 33. Bg2 Rb3 34. Rc7+ Kd6 35. Rd7+ Kc5 36. Rd1 (36. Na6+ $18 Kb5 37. Nc7+ Kb4 38. g4) 36... Kb4 37. Nd7 b5 38. Ne5 Rb1 39. Rf1 ({Resist} 39. Rxb1+ $6 Bxb1 40. Nxf7 Kc3 $14) 39... Bc2 40. Nxf7 Kc3 41. Rxb1 Bxb1 42. Bh3 $2 ({White should try} 42. f4 $1 $16) 42... Bf5 $1 $11 43. g4 Be4 (43... Bc2 $11 {remains equal.} 44. g5 Bf5 45. Bxf5 exf5) 44. Nd6 $1 $16 Bd3 45. g5 e5 (45... b4 $2 46. Bxe6 Kd4 47. Nb7 $18) 46. Be6 b4 47. Kg2 b3 48. Bxb3 $1 Kxb3 49. Ne8 g6 50. Nf6 Kc4 51. Kg3 Kd4 52. Nxh7 Ke4 53. Nf6+ Kf5 54. Nd5 Ke6 55. Ne3 Be2 56. Ng4 Kf5 57. Nf6 (57. f3 $16) 57... Ke6 (57... Bd3 $11 {keeps the balance.}) 58. Ne4 Kf5 59. f3 Bd3 60. Nd6+ Ke6 61. Ne8 $1 Ke7 62. Nf6 Ke6 63. Kf2 Bb5 64. Ke3 Bc6 65. Ne4 Bd5 66. Kf2 Bc6 67. Kg3 Kf5 68. Nd6+ Ke6 69. Nc4 $1 Bd5 70. Ne3 Bc6 71. Kg4 Ke7 72. Nc4 Bd7+ 73. Kg3 Ke6 74. Ne3 Bc6 75. Kg4 Ke7 76. Ng2 Bd7+ 77. Kg3 Bc6 78. Ne1 Bb5 79. Nc2 Bc6 80. Nb4 Bb7 81. Nd3 Kd6 82. Ne1 Bc6 83. Nd3 ({White should play} 83. Kf2 $1 $16) 83... Bb5 (83... Bb7 $11) 84. Nf2 $16 Bc6 85. Ne4+ Ke7 86. Nf6 Kf7 87. Kg4 Bb7 88. Ne4 Bc8+ 89. Kg3 Bd7 90. Nf6 Bc6 91. Kg4 Bb7 $1 {[#]} 92. h5 (92. f4 $1 $16 {[%cal Rf4e5]}) 92... gxh5+ $11 93. Kxh5 Bxf3+ 94. Kh6 Bd1 95. Ne4 Ke6 96. g6 Kf5 $2 {[%mdl 8192]} (96... Ke7 $11) 97. Nd2 Kf6 {[#]} 98. g7 $1 ({And not} 98. Ne4+ Ke7 $11) 1-0

[Event "35th Roquetas Festival 2024"]
[Site "Roquetas de Mar"]
[Date "2024.01.04"]
[Round "4.3"]
[White "Fernandez, Daniel Howard"]
[Black "Suarez Uriel, Adrian"]
[Result "0-1"]
[ECO "D85"]
[WhiteElo "2525"]
[BlackElo "2365"]
[Annotator "TA"]
[PlyCount "40"]
[EventDate "2024.01.02"]
[EventType "swiss"]
[EventCountry "ESP"]
[SourceTitle "playchess.com"]
[Source "ChessBase"]
[SourceQuality "1"]
[TimeControl "5400+30"]

{[%evp 10,40,29,0,0,0,-12,0,17,-51,-60,-47,-36,-91,-98,-98,-91,-108,-90,-122,-120,-125,-116,-145,-135,-345,-350,-515,-522,-500,-504,-507,-481]} 1. d4 {[%emt 0:16:19]} Nf6 {[%emt 0:00:11]} 2. c4 {[%emt 0:00:39]} g6 {[%emt 0:00:08]} 3. Nc3 {[%emt 0:00:14]} d5 {[%emt 0:00:06]} 4. cxd5 {[%emt 0:04:51]} Nxd5 {[%emt 0:00:13]} 5. Na4 {[%emt 0:00:23]} Bg7 {[%emt 0:07:28]} 6. Nf3 {[%emt 0:02:18]} (6. e4 $5 {[%cal Re4d5]} Nb6 7. Nf3 $11) 6... Bf5 {[%emt 0:04:10] White must now prevent ...Nb4. D90: Grünfeld: 4 Nf3 Bg7 sidelines.} 7. Bd2 {[%emt 0:08:48] Prevents Nb4.} O-O {[%emt 0:04:09]} 8. e3 {[%emt 0:10:39]} Nc6 {[%emt 0:00:56] [#] The position is equal.} 9. Rc1 $146 {[%emt 0:02:56]} (9. Bb5 $11) ({Predecessor:} 9. Bb5 Ncb4 10. Bxb4 Nxb4 11. O-O c6 12. Be2 Qa5 13. Nc5 b6 14. Nb3 Qa4 15. Qd2 {0-1 Narciso Dublan,M (2516)-Notkevich,B (2469) Barcelona Sant Marti op-A 19th 2017 (6)}) 9... e5 $15 {[%emt 0:02:09]} 10. dxe5 {[%emt 0:00:16]} Nxe5 {[%emt 0:01:38]} 11. Nd4 {[%emt 0:00:23]} (11. Be2 $15) 11... Bd3 $17 {[%emt 0:05:09] Black is more active.} 12. Qb3 {[%emt 0:06:14]} Bxf1 {[%emt 0:00:21]} 13. Kxf1 {[%emt 0:00:17]} b6 {[%emt 0:02:02]} 14. Nc3 {[%emt 0:02:21]} Nf6 {[%emt 0:03:44]} 15. Nf3 {[%emt 0:01:35]} Nfg4 {[%emt 0:16:48] ...Nxf3 would be deadly.} ({And not} 15... Nxf3 16. gxf3 Qe7 17. Kg2 $15) 16. Ne4 {[%emt 0:07:06]} Re8 {[%emt 0:03:53][%cal Bf8e8,Be8e4,Be4e3,Be3e1][%mdl 32]} 17. Qc2 {[%emt 0:06:32]} (17. h3 $17 {was worth a try.} Nd3 {[%mdl 64] Discovered Attack} 18. Rc4 Rxe4 19. hxg4 Rxc4 20. Qxc4) 17... Nd3 $19 {[%emt 0:00:58][%mdl 64] Discovered Attack, Double Attack} 18. Rd1 {[%emt 0:00:02]} (18. h3 $142 Nxc1 19. Bxc1) 18... Rxe4 {[%emt 0:04:01] Black is clearly winning.} 19. Be1 {[%emt 0:00:01] [#]} Rxe3 {[%emt 0:00:04]} 20. h3 {[%emt 0:00:07][%cal Oh3g4] [#]} Rxe1+ $1 {[%emt 0:06:32] White got outplayed after the opening.   Weighted Error Value: White=0.41/Black=0.03 (flawless)} 0-1

[Event "35th Roquetas Festival 2024"]
[Site "Roquetas de Mar"]
[Date "2024.01.04"]
[Round "4.4"]
[White "Alshameary Puente, Ismael"]
[Black "Korneev, Oleg"]
[Result "1/2-1/2"]
[ECO "D45"]
[WhiteElo "2317"]
[BlackElo "2474"]
[Annotator "TA"]
[PlyCount "46"]
[EventDate "2024.01.02"]
[EventType "swiss"]
[EventCountry "ESP"]
[SourceTitle "playchess.com"]
[Source "ChessBase"]
[SourceQuality "1"]
[TimeControl "5400+30"]

{[%evp 14,46,0,0,0,0,5,0,2,0,0,0,0,-8,15,15,15,15,19,16,16,17,84,84,89,70,67,-20,50,-28,81,-27,49,-22,95]} 1. d4 {[%emt 0:00:02]} d5 {[%emt 0:08:58]} 2. c4 {[%emt 0:00:07]} c6 {[%emt 0:01:53]} 3. Nc3 {[%emt 0:00:05]} Nf6 {[%emt 0:00:21]} 4. e3 {[%emt 0:00:08]} e6 {[%emt 0:00:22]} 5. Nf3 {[%emt 0:00:07]} Nbd7 {[%emt 0:00:05]} 6. Be2 {[%emt 0:00:23]} Bd6 {[%emt 0:01:11]} 7. b3 {[%emt 0:01:15]} O-O {[%emt 0:00:06]} 8. Bb2 {[%emt 0:00:03]} b6 {[%emt 0:01:17] D45: Semi-Slav: 5 e3.} 9. O-O {[%emt 0:00:07]} Bb7 {[%emt 0:00:02]} 10. Bd3 {[%emt 0:00:07]} Qe7 {[%emt 0:09:17]} 11. e4 {[%emt 0:24:20] [#] aiming for e5.} dxc4 {[%emt 0:08:37]} 12. bxc4 {[%emt 0:02:31] And now e5 would win.} e5 {[%emt 0:00:03]} 13. d5 {[%emt 0:01:36]} Ba3 {[%emt 0:00:08]} 14. Bxa3 {[%emt 0:08:52]} Qxa3 {[%emt 0:00:07] [#]} 15. Qb3 $146 {[%emt 0:00:47][%mdl 2048] White has good play.} ({Predecessor:} 15. Qc1 Qe7 16. Re1 Ne8 17. Qb2 Nd6 18. a4 Nc5 19. Bf1 cxd5 20. cxd5 f5 21. exf5 {0-1 Kozul,Z (2588)-Saric,I (2661) CRO-ch Porec 2014 (7)}) 15... Qe7 {[%emt 0:01:50]} 16. Rfe1 {[%emt 0:02:42]} Nc5 {[%emt 0:12:49]} 17. Qa3 {[%emt 0:02:41]} Ne8 {[%emt 0:03:28]} (17... Rfd8 $11) 18. Na4 $16 {[%emt 0:04:51] White is more active.} f6 {[%emt 0:03:10]} 19. Rab1 {[%emt 0:02:45]} Rf7 {[%emt 0:00:04]} 20. Rbd1 {[%emt 0:00:08]} (20. Nxc5 $14 Qxc5 21. Qxc5 bxc5 22. Nd2) 20... Kf8 {[%emt 0:00:24]} (20... Nxd3 $11 21. Qxd3 cxd5 22. exd5 Rc8) 21. Rb1 {[%emt 0:00:12]} (21. Nxc5 $14 Qxc5 22. Qxc5+ bxc5 23. Rb1) 21... Kg8 {[%emt 0:00:03]} (21... Nxd3 $11 22. Qxd3 Kg8) 22. Rbd1 (22. Nxc5 $16 Qxc5 23. Qxc5 bxc5 24. Rb3) 22... Kf8 (22... Nxd3 $11 23. Qxd3 cxd5 24. exd5 Rc8) 23. Rb1 (23. Nxc5 $14 Qxc5 24. Qxc5+ bxc5 25. Nd2) 23... Kg8 {Weighted Error Value: White=0.29 (precise) /Black=0.32} (23... Nxd3 $11 {keeps the balance.} 24. Qxd3 Kg8) 1/2-1/2

[Event "35th Roquetas Festival 2024"]
[Site "Roquetas de Mar"]
[Date "2024.01.04"]
[Round "4.5"]
[White "Del Prado Rodriguez, Xulio"]
[Black "Macias Pino, Diego"]
[Result "0-1"]
[ECO "A72"]
[WhiteElo "2294"]
[BlackElo "2456"]
[Annotator "RC"]
[PlyCount "64"]
[EventDate "2024.01.02"]
[EventType "swiss"]
[EventCountry "ESP"]
[SourceTitle "playchess.com"]
[Source "ChessBase"]
[SourceQuality "1"]
[TimeControl "5400+30"]

1. d4 {[%emt 0:01:39]} Nf6 {[%emt 0:00:03]} 2. c4 {[%emt 0:00:36]} e6 {[%emt 0:00:04]} 3. Nc3 {[%emt 0:00:10]} c5 {[%emt 0:00:24]} 4. d5 {[%emt 0:00:34]} exd5 {[%emt 0:00:06]} 5. cxd5 {[%emt 0:00:07]} d6 {[%emt 0:00:02]} 6. e4 {[%emt 0:01:12]} g6 {[%emt 0:00:06]} 7. Nf3 {[%emt 0:03:58]} Bg7 {[%emt 0:00:45]} 8. Be2 {[%emt 0:00:07]} O-O {[%emt 0:01:13]} 9. Be3 {[%emt 0:00:06]} Nbd7 {[%emt 0:01:48]} 10. O-O {[%emt 0:07:37]} Ng4 {[%emt 0:00:06]} 11. Bf4 {[%emt 0:01:00]} Nde5 {[%emt 0:00:11]} 12. Nxe5 {[%emt 0:05:31]} Nxe5 {[%emt 0:00:02]} 13. Bg3 {[%emt 0:10:12]} f5 {[%emt 0:05:13]} 14. f4 {[%emt 0:00:49]} Nf7 {[%emt 0:05:56]} 15. exf5 {[%emt 0:05:27]} Bxf5 {[%emt 0:01:28]} 16. Qd2 {[%emt 0:16:25]} a6 {[%emt 0:08:35]} 17. a4 {[%emt 0:01:06]} Qa5 {[%emt 0:04:01]} 18. Bh4 {[%emt 0:09:22]} Qb4 {[%emt 0:05:48]} 19. g4 {[%emt 0:06:21]} Bd7 {[%emt 0:01:39]} 20. Bg3 {[%emt 0:01:23]} Rae8 {[%emt 0:01:04]} 21. Bf3 {[%emt 0:09:07]} Bd4+ {[%emt 0:09:33]} 22. Kh1 {[%emt 0:00:26]} Be3 {[%emt 0:02:23]} 23. Qc2 {[%emt 0:00:46]} Bxf4 {[%emt 0:01:47]} 24. Ne4 {[%emt 0:09:33]} Ne5 {[%emt 0:03:48]} 25. Bxf4 {[%emt 0:02:42]} Rxf4 {[%emt 0:05:42]} 26. Nxd6 {[%emt 0:01:58]} Ref8 {[%emt 0:01:35]} 27. Be2 {[%emt 0:00:26]} Nxg4 {[%emt 0:01:31]} 28. Nc4 {[%emt 0:02:03]} Bf5 {[%emt 0:04:19]} 29. Qc3 {[%emt 0:01:31]} Qxc3 {[%emt 0:00:34]} 30. bxc3 {[%emt 0:00:08]} Nf2+ {[%emt 0:00:02]} 31. Kg1 {[%emt 0:00:37]} Be4 {[%emt 0:00:19]} 32. h4 {[%emt 0:00:38]} Rxh4 {[%emt 0:00:23]} 0-1

[Event "35th Roquetas Festival 2024"]
[Site "Roquetas de Mar"]
[Date "2024.01.04"]
[Round "4.6"]
[White "Camacho Collados, Jose"]
[Black "Bernadskiy, Vitaliy"]
[Result "0-1"]
[ECO "A40"]
[WhiteElo "2381"]
[BlackElo "2566"]
[Annotator "TA"]
[PlyCount "90"]
[EventDate "2024.01.02"]
[EventType "swiss"]
[EventCountry "ESP"]
[SourceTitle "playchess.com"]
[Source "ChessBase"]
[SourceQuality "1"]
[TimeControl "5400+30"]

{[%evp 9,90,0,14,12,8,6,7,0,14,0,8,0,0,3,2,0,4,0,0,0,0,0,0,0,0,-43,-3,-33,0,0,10,-27,-30,-35,-31,-33,-37,-26,-6,-26,-8,-88,-86,-97,-95,-93,-93,-164,-161,-168,-152,-175,-175,-175,-106,-134,-133,-150,-173,-156,-164,-197,-121,-131,-114,-124,-118,-265,-267,-265,-256,-1506,-1453,-29964,-29965,-29948,-5691,-29996,-29997,-29997,-29998,-29998,-29999]} 1. d4 {[%emt 0:00:02]} e6 {[%emt 0:04:09]} 2. Nf3 {[%emt 0:05:11]} c5 {[%emt 0:00:31]} 3. c3 {[%emt 0:00:09]} d5 {[%emt 0:00:14]} 4. Bg5 {[%emt 0:00:19]} Qb6 {[%emt 0:02:29]} 5. Qb3 {[%emt 0:00:09]} h6 {[%emt 0:01:59] Threatens to win with ...Qxb3.} 6. Bf4 {[%emt 0:04:23] [#] D02: 1 d4 d5 2 Nf3 sidelines, including 2...Nf6 3 g3 and 2...Nf6 3 Bf4.} Nf6 $146 {[%emt 0:04:13]} ({Predecessor:} 6... Nc6 7. e3 Nf6 8. Nbd2 c4 9. Qc2 Nh5 10. Bg3 Nxg3 11. hxg3 Qc7 12. e4 b5 {0-1 Jenni,F (2521)-Volkov,S (2628) Champions Challenge 178th blitz 2006 (2.4)}) 7. h3 {[%emt 0:01:12]} Be7 {[%emt 0:04:02]} 8. e3 {[%emt 0:01:29] The position is equal.} O-O {[%emt 0:00:16]} 9. Nbd2 {[%emt 0:01:22]} Nc6 {[%emt 0:01:38]} 10. Be2 {[%emt 0:00:38]} Qd8 {[%emt 0:00:39]} 11. O-O {[%emt 0:01:13]} b6 {[%emt 0:01:05][%cal Bb7b6,Bb6b5,Bb5b4][%mdl 32]} 12. Ne5 {[%emt 0:05:16]} Bb7 {[%emt 0:01:28]} 13. Qa4 {[%emt 0:05:10]} Nxe5 {[%emt 0:00:51]} 14. Bxe5 {[%emt 0:01:25]} a6 {[%emt 0:00:32]} 15. Qc2 {[%emt 0:09:45]} Nd7 {[%emt 0:01:55]} 16. Bh2 {[%emt 0:01:06]} b5 {[%emt 0:00:05]} 17. f4 {[%emt 0:08:12]} Rc8 {[%emt 0:01:09]} 18. Nf3 {[%emt 0:02:16]} cxd4 {[%emt 0:00:56]} 19. exd4 {[%emt 0:00:48]} b4 {[%emt 0:00:15]} 20. Ne5 {[%emt 0:05:18]} Nf6 {[%emt 0:03:39]} 21. f5 {[%emt 0:04:55]} exf5 {[%emt 0:02:31]} 22. Rxf5 {[%emt 0:01:20]} bxc3 {[%emt 0:00:13]} 23. bxc3 {[%emt 0:00:34]} Ne4 {[%emt 0:00:27]} 24. Raf1 {[%emt 0:01:55][%cal Oc2b3]} Bf6 $36 {[%emt 0:04:08][%mdl 2048] Black has some pressure.} 25. R1f3 {[%emt 0:05:35]} (25. Qb2 $11 {remains equal.} Qe7 26. Bd3 Bxe5 27. Rxe5) 25... Bxe5 $17 {[%emt 0:04:29]} 26. Bxe5 {[%emt 0:00:44]} f6 {[%emt 0:00:38]} 27. Qb2 {[%emt 0:05:01] Prevents Qb6} Qd7 {[%emt 0:03:07]} 28. Bg3 {[%emt 0:13:56]} (28. Bh2 $17) 28... Nxg3 $19 {[%emt 0:02:41][%mdl 64] [#] Deflection} 29. Rxg3 {[%emt 0:00:41]} Qxf5 {[%emt 0:00:09]} 30. Qxb7 {[%emt 0:01:33][%csl Gg3][%cal Rb7g7]} Rf7 {[%emt 0:00:15]} 31. Qxa6 {[%emt 0:00:29]} Rb8 {[%emt 0:02:22]} (31... Re7 $19 32. Kh2 Rd8) 32. Bd3 {[%emt 0:03:14]} Qd7 {[%emt 0:00:57]} ({Much worse is} 32... Qf4 $6 33. Rf3 Qc7 34. Qe6 $11) 33. a4 {[%emt 0:00:36]} Qc7 {[%emt 0:00:22]} 34. Re3 {[%emt 0:02:17]} Re7 {[%emt 0:00:20] Dodges Qe6+} (34... Qxc3 $2 35. Bh7+ Kxh7 36. Rxc3 $18) 35. Re6 {[%emt 0:00:12]} Rbe8 {[%emt 0:01:00]} (35... Kf7 $19 36. Rxe7+ Qxe7) 36. Qc6 {[%emt 0:02:55] Black must now prevent Qxc7.} Kf8 {[%emt 0:04:47] Hoping for ...Qg3.} 37. Bg6 {[%emt 0:05:43]} Rd8 {[%emt 0:01:44]} (37... Qxc6 {simplifies} 38. Rxc6 Ra8 39. Rc5 Rb7) 38. Qa6 {[%emt 0:00:17] Now White is beyond hope.} (38. a5 $17) 38... Qxc3 {[%emt 0:02:04]} 39. Rxf6+ {[%emt 0:01:41]} Kg8 $1 {[%emt 0:00:11]} 40. Qb6 {[%emt 0:00:35] [#]} (40. Rf1) 40... Qe3+ $1 {[%emt 0:01:20]} 41. Kh1 gxf6 {[%emt 0:00:24]} 42. Qxd8+ {[%emt 0:00:55]} Kg7 {[%emt 0:00:03] ( -> ...Qc1+)} 43. Bh5 {[%emt 0:00:57]} Qc1+ {[%emt 0:00:06] Black mates.} 44. Kh2 {[%emt 0:00:02]} Qf4+ {[%emt 0:00:05]} 45. g3 {[%emt 0:00:12]} Qf2+ {[%emt 0:00:04] An entertaining game by Bernadskiy.   Weighted Error Value: White=0.52/Black=0.08 (flawless)} 0-1

[Event "35th Roquetas Festival 2024"]
[Site "Roquetas de Mar"]
[Date "2024.01.04"]
[Round "4.7"]
[White "Fiorito, Francisco"]
[Black "Stremavicius, Titas"]
[Result "1/2-1/2"]
[ECO "A06"]
[WhiteElo "2370"]
[BlackElo "2543"]
[Annotator "TA"]
[PlyCount "56"]
[EventDate "2024.01.02"]
[EventType "swiss"]
[EventCountry "ESP"]
[SourceTitle "playchess.com"]
[Source "ChessBase"]
[SourceQuality "1"]
[TimeControl "5400+30"]

{[%evp 16,56,4,13,16,0,6,-15,-15,-15,-15,-15,-12,-15,-20,-18,-22,-15,-18,-34,-31,-29,-34,-45,-6,-7,-6,-6,-9,-16,-7,-9,0,0,0,-14,0,0,0,-8,0,-4,0]} 1. Nf3 {[%emt 0:00:06]} d5 {[%emt 0:02:44]} 2. b3 {[%emt 0:00:20]} Nf6 {[%emt 0:00:32]} 3. Bb2 {[%emt 0:00:10]} e6 {[%emt 0:00:05]} 4. e3 {[%emt 0:00:08]} Nbd7 {[%emt 0:00:49]} 5. d4 {[%emt 0:01:39]} b6 {[%emt 0:05:26]} 6. Bd3 {[%emt 0:00:43]} Bb7 {[%emt 0:00:35]} 7. O-O {[%emt 0:01:42]} Bd6 {[%emt 0:00:32]} 8. Nbd2 {[%emt 0:00:41]} O-O {[%emt 0:16:19]} 9. c4 $1 {[%emt 0:01:25][%mdl 4] is recently more successful than 9.Ne5.} Re8 {[%emt 0:06:09] E14: Queen's Indian: Classical Variation (4 e3).} 10. Ne5 {[%emt 0:11:08]} Ne4 {[%emt 0:08:29] [#]} 11. Bxe4 $146 {[%emt 0:26:48]} (11. f4 {feels hotter.} Ndf6 12. Rc1 a5 13. Nxe4 Nxe4 14. Qh5) ({Predecessor:} 11. Nxd7 Qxd7 12. f3 Nxd2 13. Qxd2 Rad8 14. Rac1 dxc4 15. Bxc4 c5 16. Qe2 Qe7 17. Rfd1 {1-0 Villalba Pons,G (1451)-Lozano Casasayas,M (1979) Catalan-ch U10/20 2022 (2)}) 11... dxe4 {[%emt 0:00:12]} 12. Nxd7 {[%emt 0:01:02]} Qxd7 {[%emt 0:00:05]} 13. Qc2 {[%emt 0:00:55]} f5 {[%emt 0:04:08]} 14. c5 {[%emt 0:01:56]} Be7 {[%emt 0:00:09]} 15. Rfc1 {[%emt 0:04:18] Strongly threatening c6.} Bd5 {[%emt 0:00:29]} 16. a4 {[%emt 0:04:52]} Reb8 {[%emt 0:05:06][%cal Be8b8,Bb8c8,Bc8c6][%mdl 32]} 17. cxb6 cxb6 {[%emt 0:01:12]} 18. Nc4 {[%emt 0:14:36]} Rc8 {[%emt 0:04:04]} 19. Qe2 {[%emt 0:05:29]} Bf6 {[%emt 0:01:58]} 20. Rc3 {[%emt 0:05:26] The position is equal.} Rc6 {[%emt 0:01:25]} 21. Rac1 {[%emt 0:00:30]} Rac8 {[%emt 0:00:12]} 22. Qd2 {[%emt 0:01:03]} R8c7 {[%emt 0:04:08]} 23. h3 {[%emt 0:01:39]} Qc8 {[%emt 0:02:30][%cal Rd5c4]} 24. Nd6 {[%emt 0:01:11][%mdl 64] [#] Deflection} Qd7 {[%emt 0:06:50]} 25. Nc4 {[%emt 0:00:05]} Qc8 {[%emt 0:08:06][%cal Rd5c4]} 26. Nd6 {[%emt 0:00:04][%mdl 64] Deflection} Qd7 {[%emt 0:00:06]} 27. Nc4 {[%emt 0:00:01]} Qc8 {[%emt 0:00:12][%cal Rd5c4]} 28. Nd6 {[%emt 0:00:04][%mdl 64] [#] Deflection} Qd7 {[%emt 0:00:05] Weighted Error Value: White=0.03 (flawless) /Black=0.05 (flawless)} 1/2-1/2

[Event "35th Roquetas Festival 2024"]
[Site "Roquetas de Mar"]
[Date "2024.01.04"]
[Round "4.8"]
[White "Vergara Anton, Diego"]
[Black "Cuenca Jimenez, Jose Fernando"]
[Result "1-0"]
[ECO "D02"]
[WhiteElo "2346"]
[BlackElo "2514"]
[Annotator "TA"]
[PlyCount "66"]
[EventDate "2024.01.02"]
[EventType "swiss"]
[EventCountry "ESP"]
[SourceTitle "playchess.com"]
[Source "ChessBase"]
[SourceQuality "1"]
[TimeControl "5400+30"]

{[%evp 9,66,4,14,-2,6,0,1,1,9,-1,7,5,16,15,12,12,14,-56,-66,-43,13,0,0,0,0,0,0,0,0,0,2,-25,0,-10,-9,-24,0,-20,0,-81,-30,-75,-53,-45,-31,-139,0,-47,0,-118,-137,-127,-38,-62,55,24,37,26,822]} 1. d4 {[%emt 0:02:26]} d5 {[%emt 0:00:21]} 2. Nf3 {[%emt 0:00:06]} Nf6 {[%emt 0:00:16]} 3. g3 {[%emt 0:00:07]} c5 {[%emt 0:00:54]} 4. Bg2 {[%emt 0:00:10]} cxd4 {[%emt 0:00:22]} 5. O-O {[%emt 0:00:12]} Bd7 {[%emt 0:00:22]} 6. b3 {[%emt 0:02:14][%cal Oc1b2] D02: 1 d4 d5 2 Nf3 sidelines, including 2...Nf6 3 g3 and 2...Nf6 3 Bf4.} Nc6 {[%emt 0:00:29]} 7. Nxd4 {[%emt 0:00:46]} e5 {[%emt 0:00:03]} 8. Nxc6 {[%emt 0:01:07] The position is equal.} Bxc6 {[%emt 0:00:05]} 9. e3 {[%emt 0:06:47]} Bc5 {[%emt 0:15:43]} 10. Bb2 {[%emt 0:01:33]} Qc7 {[%emt 0:04:13] [#]} 11. c4 $146 {[%emt 0:03:46][%cal Rc4d5]} ({Predecessor:} 11. Nd2 O-O {½-½ Iliaguev,N (2338)-Baron,T (2532) ISR-ch Maalot Tarshiha 2018 (8)}) 11... dxc4 {[%emt 0:10:06]} 12. Bxc6+ {[%emt 0:00:31]} Qxc6 {[%emt 0:03:41]} 13. Bxe5 {[%emt 0:03:23]} ({White should play} 13. Nd2 $11) 13... Rd8 $15 {[%emt 0:09:49]} 14. Qe2 {[%emt 0:02:07] White is weak on the light squares} cxb3 {[%emt 0:03:52]} (14... Ne4 $1 $15 15. Qg4 f6 16. Qxg7 Rf8) 15. axb3 {[%emt 0:00:10] Rc1 is the strong threat.} (15. Bxf6 {seems wilder.} Qxf6 16. Qb5+ Rd7 17. Nc3) 15... O-O {[%emt 0:00:59]} 16. Bxf6 {[%emt 0:08:42]} Qxf6 {[%emt 0:00:31]} 17. Ra2 {[%emt 0:00:29]} a6 {[%emt 0:12:03]} 18. Rc1 {[%emt 0:01:32]} Qb6 {[%emt 0:03:29]} 19. Nd2 {[%emt 0:04:46]} Bb4 {[%emt 0:03:43]} 20. Nc4 {[%emt 0:00:46]} Qe6 {[%emt 0:01:33]} 21. Ra4 {[%emt 0:05:09]} Qe7 {[%emt 0:03:36]} 22. Raa1 {[%emt 0:04:58]} (22. Ne5 {keeps more tension.} Rd2 23. Qf1 a5 24. Nf3) 22... Rd7 {[%emt 0:01:47]} 23. Qf3 {[%emt 0:01:42]} Rd3 {[%emt 0:07:11]} 24. Rab1 {[%emt 0:01:46]} (24. Nb6 $11 {keeps the balance.}) 24... Rfd8 {[%emt 0:03:33]} (24... b5 $1 $17 {[%cal Rb5c4]} 25. Nb6 Rfd8) 25. Qf4 {[%emt 0:05:53]} h6 {[%emt 0:07:41]} 26. Qe5 {[%emt 0:00:54]} R8d5 {[%emt 0:03:16]} 27. Qb8+ {[%emt 0:02:48] [#]} (27. Qxe7 $15 Bxe7 28. Kg2) 27... Rd8 {[%emt 0:03:16]} ({Better is} 27... Kh7 $1 $17 28. Qf4 Qe6) 28. Qe5 {[%emt 0:00:02]} R8d5 {[%emt 0:00:05]} (28... Qd7 $15 29. Nb6 Qd6 30. Qxd6 R8xd6) 29. Qb8+ $17 {[%emt 0:00:02] [#]} Kh7 $1 {[%emt 0:00:02] Strongly threatening ...b5.} 30. Qf4 {[%emt 0:00:20]} Qg5 {[%emt 0:01:51]} (30... Qe6 $17 {And now ...g5 would win.} 31. Ne5 Rxe5 32. Qxb4 Rb5) 31. Qxf7 {[%emt 0:03:00]} Rd7 {[%emt 0:00:34]} (31... b5 $1 $15 32. Nb2 Rd2) 32. Qf3 {[%emt 0:01:28] Qe4+ would be deadly.} Qd5 {[%emt 0:00:29] Repels Qe4+} 33. Qg4 {[%emt 0:01:42] Threatens to win with Nb6.} Qg8 $2 {[%emt 0:01:05][%mdl 8192] Weighted Error Value: White=0.20 (precise) /Black=0.30} (33... Bc5 $11) 1-0